bitfinex/quotes_BTCUSD_20241205
["timestamp","ask_amount","ask_price","bid_price","bid_amount"]
[1733440812687,0.10503154,96771.0,96770.0,0.0027242]
[1733440812811,0.09235691,96774.0,96770.0,0.0027242]
[1733440813062,0.10503154,96774.0,96770.0,0.0027242]
[1733440813382,0.19738845,96774.0,96770.0,0.0017242]
[1733440813583,0.10503154,96774.0,96770.0,0.0017242]
[1733440814293,0.09235691,96777.0,96770.0,0.0017242]
[1733440814507,0.10503154,96773.0,96760.0,0.0017252]
[1733440814737,0.09236487,96765.0,96760.0,0.0017252]
[1733440814836,0.1385473,96767.0,96760.0,0.0017252]
[1733440814837,0.19739641,96764.0,96760.0,0.0017252]
[1733440815043,0.10503154,96761.0,96760.0,0.0017252]
[1733440815474,0.13710984,96761.0,96760.0,0.0017252]
[1733440815699,0.13710984,96761.0,96702.0,0.148]
[1733440815700,0.47801181,96761.0,96702.0,0.148]
[1733440815900,0.0838,96762.0,96702.0,0.148]
[1733440815901,0.10503154,96742.0,96708.0,0.00313553]
[1733440816108,0.09235933,96739.0,96702.0,0.148]
[1733440816291,0.09235933,96734.0,96702.0,0.148]
[1733440816492,0.10503154,96727.0,96701.0,0.01009232]
[1733440816768,0.10503154,96727.0,96684.0,0.148]
[1733440816769,0.09235933,96720.0,96684.0,0.148]
[1733440817069,0.138539,96723.0,96684.0,0.148]
[1733440817070,0.09235933,96718.0,96684.0,0.148]
[1733440817255,0.10503154,96717.0,96684.0,0.148]
[1733440817457,0.10503154,96717.0,96682.0,0.148]
[1733440817952,0.09235933,96721.0,96695.0,0.148]
[1733440818135,0.09235933,96730.0,96705.0,0.148]
[1733440818341,0.10503154,96729.0,96705.0,0.148]
[1733440818514,0.10503154,96729.0,96700.0,0.148]
[1733440818866,0.10378154,96729.0,96700.0,0.148]
[1733440819067,0.08078154,96729.0,96700.0,0.148]
[1733440819270,0.08078154,96729.0,96694.0,0.03058853]
[1733440819469,0.08078154,96729.0,96694.0,0.02958853]
[1733440819715,0.09212162,96728.0,96700.0,0.148]
[1733440819916,0.10503154,96727.0,96700.0,0.148]
[1733440820117,0.10503154,96727.0,96705.0,0.148]
[1733440820760,0.09212162,96746.0,96724.0,0.148]
[1733440820971,0.09212162,96753.0,96731.0,0.148]
[1733440821300,0.10503154,96752.0,96731.0,0.148]
[1733440821917,0.09203829,96775.0,96742.0,0.148]
[1733440822124,0.09203829,96775.0,96718.0,0.0768]
[1733440822125,0.10503154,96775.0,96755.0,0.148]
[1733440822328,0.0008626,96760.0,96755.0,0.148]
[1733440824986,0.10503154,96775.0,96755.0,0.148]
[1733440824987,0.10089414,96775.0,96755.0,0.001]
[1733440825403,0.10089414,96775.0,96739.0,0.148]
[1733440826056,0.10089414,96775.0,96741.0,0.0031195]
[1733440826449,0.10089414,96775.0,96738.0,0.148]
[1733440827195,0.09202073,96781.0,96730.0,0.148]
[1733440827416,0.10503154,96771.0,96731.0,0.148]
[1733440827618,0.10503154,96771.0,96739.0,0.001]
[1733440827995,0.10503154,96771.0,96733.0,0.00312654]
[1733440828204,0.19710684,96771.0,96733.0,0.00312654]
[1733440828589,0.19710684,96771.0,96739.0,0.148]
[1733440828800,0.10378154,96771.0,96751.0,0.148]
[1733440829014,0.10378154,96771.0,96747.0,0.148]
[1733440829882,0.10378154,96771.0,96739.0,0.148]
[1733440830311,0.10378154,96771.0,96739.0,0.146]
[1733440831463,0.10378154,96771.0,96739.0,0.147]
[1733440832112,0.10378154,96771.0,96739.0,0.146]
[1733440832333,0.0920753,96785.0,96759.0,0.146]
[1733440832592,0.0920753,96791.0,96775.0,0.146]
[1733440832765,0.2762259,96806.0,96760.0,0.10606495]
[1733440832766,0.0920753,96799.0,96781.0,0.146]
[1733440832992,0.13811295,96802.0,96778.0,0.146]
[1733440832993,0.10503154,96798.0,96778.0,0.146]
[1733440833440,0.10503154,96798.0,96763.0,0.146]
[1733440833654,0.23018825,96815.0,96758.0,0.0803]
[1733440833655,0.10503154,96797.0,96758.0,0.0803]
[1733440833872,0.10503154,96796.0,96758.0,0.0803]
[1733440834084,0.10503154,96783.0,96743.0,0.146]
[1733440834324,0.10503154,96783.0,96752.0,0.146]
[1733440834545,0.001,96791.0,96762.0,0.146]
[1733440834752,0.10503154,96790.0,96758.0,0.146]
[1733440834965,0.10503154,96790.0,96746.0,0.00305985]
[1733440834966,0.10503154,96790.0,96766.0,0.146]
[1733440835618,0.0929379,96800.0,96771.0,0.146]
[1733440835841,0.10503154,96799.0,96771.0,0.146]
[1733440836256,0.10503154,96799.0,96772.0,0.146]
[1733440837449,0.10503154,96795.0,96749.0,0.00103326]
[1733440837663,0.10503154,96795.0,96766.0,0.146]
[1733440839159,0.10503154,96795.0,96766.0,0.001]
[1733440839366,0.0920708,96793.0,96766.0,0.001]
[1733440839565,0.10503154,96792.0,96766.0,0.001]
[1733440839788,0.10503154,96792.0,96755.0,0.146]
[1733440840009,0.10503154,96787.0,96748.0,0.146]
[1733440840979,0.10503154,96787.0,96737.0,0.00103352]
[1733440840980,0.10503154,96787.0,96749.0,0.146]
[1733440841157,0.10378154,96787.0,96749.0,0.146]
[1733440842048,0.19585234,96787.0,96749.0,0.146]
[1733440842247,0.19585234,96787.0,96750.0,0.00310596]
[1733440842890,0.10378154,96787.0,96750.0,0.00310596]
[1733440843115,0.0920708,96786.0,96750.0,0.00310596]
[1733440843343,0.10503154,96785.0,96750.0,0.00310596]
[1733440843576,0.10503154,96785.0,96758.0,0.146]
[1733440843809,0.10503154,96785.0,96763.0,0.146]
[1733440846118,0.19710234,96785.0,96763.0,0.146]
[1733440846332,0.10503154,96785.0,96760.0,0.146]
[1733440846537,0.10503154,96785.0,96756.0,0.146]
[1733440846733,0.10603154,96785.0,96751.0,0.146]
[1733440846943,0.0920708,96781.0,96750.0,0.00310596]
[1733440847313,0.10603154,96785.0,96750.0,0.00310596]
[1733440847314,0.19710234,96780.0,96750.0,0.00310596]
[1733440847505,0.18514161,96785.0,96750.0,0.00310596]
[1733440847506,0.0930708,96785.0,96784.0,0.146]
[1733440847708,0.001,96785.0,96784.0,0.37283154]
[1733440847991,0.0008626,96800.0,96799.0,0.146]
[1733440848188,0.0008626,96800.0,96799.0,0.25103154]
[1733440848363,0.0008626,96800.0,96799.0,0.28563127]
[1733440849394,0.0008626,96800.0,96799.0,0.25203154]
[1733440849677,0.0008626,96800.0,96799.0,0.25103154]
[1733440850087,0.0008626,96800.0,96799.0,0.27503154]
[1733440850501,0.0004747,96820.0,96799.0,0.10603154]
[1733440850704,0.0004747,96820.0,96815.0,0.146]
[1733440850903,0.0004747,96820.0,96799.0,0.001]
[1733440850904,0.0004747,96820.0,96809.0,0.144]
[1733440851696,0.0004747,96820.0,96816.0,0.144]
[1733440853118,0.0004747,96820.0,96816.0,0.145]
[1733440855384,0.0004747,96820.0,96816.0,0.001]
[1733440858564,0.0004747,96820.0,96810.0,0.144]
[1733440858766,0.22903154,96819.0,96785.0,0.00103287]
[1733440859028,0.22903154,96819.0,96816.0,0.001]
[1733440859029,0.14695062,96818.0,96816.0,0.001]
[1733440859226,0.10503154,96817.0,96816.0,0.001]
[1733440859471,0.10503154,96817.0,96781.0,0.00307858]
[1733440859696,0.09188033,96808.0,96782.0,0.10503154]
[1733440859912,0.18376066,96814.0,96782.0,0.10503154]
[1733440859913,0.09188033,96814.0,96783.0,0.00103305]
[1733440860141,0.10503154,96814.0,96784.0,0.10503154]
[1733440860351,0.0004747,96820.0,96816.0,0.89496846]
[1733440860557,0.10378154,96819.0,96816.0,0.37996191]
[1733440860784,0.10503154,96819.0,96816.0,0.37996191]
[1733440861430,0.0004747,96820.0,96816.0,0.37996191]
[1733440863527,0.0004747,96820.0,96816.0,0.38988468]
[1733440864285,0.0004747,96820.0,96816.0,0.39088468]
[1733440864492,0.0004747,96820.0,96817.0,0.10606432]
[1733440864702,0.0008647,96830.0,96817.0,0.10606432]
[1733440864908,0.0008647,96830.0,96818.0,0.02613299]
[1733440865115,0.0008647,96830.0,96819.0,0.10606409]
[1733440865530,0.0144492,96850.0,96820.0,0.1278]
[1733440865703,0.0144492,96850.0,96821.0,0.10606409]
[1733440866140,0.0144492,96850.0,96822.0,0.0642885]
[1733440866360,0.0144492,96850.0,96823.0,0.10606409]
[1733440866745,0.0144492,96850.0,96824.0,0.1332683]
[1733440866954,0.0144492,96850.0,96825.0,0.00103244]
[1733440867166,0.0144492,96850.0,96826.0,0.13447246]
[1733440868643,0.0144492,96850.0,96827.0,0.03814714]
[1733440868878,0.0144492,96850.0,96826.0,0.13547246]
[1733440868879,0.0144492,96850.0,96828.0,0.13455832]
[1733440869089,0.00039684,96857.0,96828.0,0.13455832]
[1733440869090,0.00039684,96857.0,96833.0,0.10503154]
[1733440869296,6e-05,96876.0,96834.0,0.00103234]
[1733440869532,6e-05,96876.0,96835.0,0.10606388]
[1733440869729,0.0008243,96860.0,96835.0,0.10606388]
[1733440869921,0.0008243,96860.0,96836.0,0.0683157]
[1733440870135,6e-05,96876.0,96836.0,0.0683157]
[1733440870136,6e-05,96876.0,96846.0,0.00307065]
[1733440870372,6e-05,96876.0,96853.0,0.10503154]
[1733440870581,6e-05,96876.0,96858.0,0.10503154]
[1733440870791,6e-05,96876.0,96859.0,0.07109103]
[1733440871002,6e-05,96876.0,96860.0,0.10503154]
[1733440871229,6e-05,96876.0,96866.0,0.10503154]
[1733440871471,6e-05,96876.0,96871.0,0.10503154]
[1733440871691,6e-05,96876.0,96872.0,0.03294381]
[1733440871911,6e-05,96876.0,96873.0,0.10503154]
[1733440872135,6e-05,96876.0,96874.0,0.001032]
[1733440872353,0.0008643,96890.0,96882.0,6e-05]
[1733440872595,0.0008643,96890.0,96888.0,0.0009244]
[1733440872809,0.00085525,96904.0,96889.0,0.10606342]
[1733440873016,0.00085525,96904.0,96889.0,0.14421056]
[1733440873233,0.09140965,96935.0,96904.0,0.00221665]
[1733440873456,8.54259803,96936.0,96890.0,0.03112804]
[1733440873457,8.54259803,96936.0,96905.0,0.14412018]
[1733440873698,8.54259803,96936.0,96906.0,0.02901426]
[1733440873937,8.54259803,96936.0,96907.0,0.10503154]
[1733440874157,8.54259803,96936.0,96888.0,0.00992758]
[1733440874158,0.10503154,96935.0,96888.0,0.00992758]
[1733440874613,0.10503154,96927.0,96875.0,0.00315172]
[1733440874832,0.10503154,96927.0,96876.0,0.10606362]
[1733440875064,0.10503154,96927.0,96877.0,0.10503154]
[1733440875356,8.54259803,96936.0,96882.0,0.10503154]
[1733440875571,0.10503154,96935.0,96886.0,0.10503154]
[1733440875788,0.10503154,96935.0,96887.0,0.00103178]
[1733440876018,8.54259803,96936.0,96887.0,0.00103178]
[1733440876019,8.54259803,96936.0,96888.0,0.10503154]
[1733440876236,0.10503154,96935.0,96889.0,0.2517245]
[1733440876446,0.10453154,96935.0,96889.0,0.22271024]
[1733440876672,0.10453154,96935.0,96875.0,0.001]
[1733440876673,0.10453154,96935.0,96898.0,0.00310294]
[1733440876889,0.10453154,96935.0,96899.0,0.13610735]
[1733440877102,0.10453154,96935.0,96898.0,0.00310294]
[1733440877335,0.10453154,96935.0,96899.0,0.03004397]
[1733440877539,0.10453154,96935.0,96899.0,0.03107584]
[1733440877756,8.54259803,96936.0,96900.0,0.17322265]
[1733440877962,8.54259803,96936.0,96901.0,0.00103177]
[1733440878178,8.54259803,96936.0,96902.0,0.14421038]
[1733440878398,8.54259803,96936.0,96902.0,0.17425435]
[1733440878637,5.20058522,96936.0,96925.0,0.10503154]
[1733440878908,4.83504515,96936.0,96934.0,0.12803154]
[1733440879089,4.17682934,96936.0,96935.0,0.28109363]
[1733440879300,0.69821234,96936.0,96935.0,0.20134406]
[1733440879508,0.36887408,96936.0,96935.0,0.10809363]
[1733440880156,0.36887408,96936.0,96935.0,0.13134787]
[1733440880371,0.13373637,96936.0,96935.0,0.16436495]
[1733440880591,0.01765136,96956.0,96950.0,0.15]
[1733440880802,7.992e-05,96968.0,96956.0,0.023]
[1733440881031,7.992e-05,96968.0,96957.0,0.10932147]
[1733440881252,7.992e-05,96968.0,96962.0,0.10503154]
[1733440881476,7.992e-05,96968.0,96957.0,0.00428993]
[1733440881477,7.992e-05,96968.0,96967.0,0.10503154]
[1733440881941,0.0801,96966.0,96945.0,0.00313651]
[1733440882159,0.0801,96966.0,96962.0,0.00992923]
[1733440882376,0.0801,96966.0,96945.0,0.00313651]
[1733440882592,0.0801,96966.0,96908.0,0.00103139]
[1733440882593,0.0801,96966.0,96956.0,0.001]
[1733440882809,0.10503154,96965.0,96956.0,0.001]
[1733440883056,0.10503154,96965.0,96896.0,0.00103159]
[1733440883057,0.12839619,96965.0,96896.0,0.00103159]
[1733440883271,0.1281,96964.0,96907.0,0.10503154]
[1733440883490,0.1281,96964.0,96909.0,0.10503154]
[1733440883491,0.10503154,96963.0,96909.0,0.10503154]
[1733440883701,0.0008628,96940.0,96927.0,0.00310973]
[1733440884579,0.0008628,96940.0,96888.0,0.0286121]
[1733440884580,0.23313154,96939.0,96889.0,0.00103169]
[1733440884780,0.23313154,96939.0,96890.0,0.10503154]
[1733440885014,0.0801,96937.0,96890.0,0.10503154]
[1733440885215,0.15303154,96936.0,96890.0,0.10503154]
[1733440885433,0.10503154,96930.0,96888.0,0.01034137]
[1733440885659,0.10503154,96918.0,96888.0,0.01034137]
[1733440885889,0.10503154,96910.0,96880.0,0.0017256]
[1733440886096,0.048,96907.0,96880.0,0.0017256]
[1733440886304,0.048,96907.0,96889.0,0.001]
[1733440886525,0.048,96905.0,96880.0,0.0017256]
[1733440886743,0.0801,96904.0,96880.0,0.0017256]
[1733440886991,0.0801,96889.0,96880.0,0.0017256]
[1733440887201,0.048,96880.0,96817.0,0.00103254]
[1733440887416,0.09085349,96901.0,96816.0,0.39000162]
[1733440887417,0.0801,96863.0,96816.0,0.39000162]
[1733440887635,0.10503154,96859.0,96816.0,0.39000162]
[1733440887841,0.10503154,96855.0,96816.0,0.39000162]
[1733440888291,0.0801,96853.0,96816.0,0.39000162]
[1733440888501,0.10503154,96852.0,96816.0,0.39000162]
[1733440890890,0.0801,96853.0,96816.0,0.39000162]
[1733440890891,0.0801,96853.0,96818.0,0.023]
[1733440891108,0.0801,96853.0,96820.0,0.023]
[1733440891314,0.0801,96853.0,96819.0,0.10606417]
[1733440891315,0.0801,96853.0,96822.0,0.023]
[1733440891546,0.048,96854.0,96824.0,0.023]
[1733440891754,0.0788,96873.0,96826.0,0.023]
[1733440891962,0.18383154,96873.0,96827.0,0.10606399]
[1733440892199,0.18383154,96873.0,96828.0,0.023]
[1733440892402,0.18383154,96873.0,96829.0,0.10606399]
[1733440892616,0.0788,96873.0,96834.0,0.10503154]
[1733440892839,0.0788,96873.0,96835.0,0.02403234]
[1733440893069,0.1255,96898.0,96837.0,0.023]
[1733440893282,0.10503154,96897.0,96838.0,0.10606387]
[1733440893483,0.10503154,96897.0,96839.0,0.023]
[1733440893693,0.09114824,96890.0,96841.0,0.023]
[1733440893907,0.10503154,96889.0,96843.0,0.023]
[1733440894130,0.10503154,96889.0,96843.0,0.12803154]
[1733440895412,0.09114824,96888.0,96843.0,0.12803154]
[1733440895623,0.10503154,96887.0,96843.0,0.12903154]
[1733440896043,0.10503154,96887.0,96839.0,0.023]
[1733440896283,0.09114824,96888.0,96838.0,0.01276664]
[1733440896284,0.10503154,96874.0,96838.0,0.01276664]
[1733440896483,0.19617978,96871.0,96817.0,0.00103256]
[1733440896678,0.09114824,96869.0,96818.0,0.10503154]
[1733440896885,0.30667061,96876.0,96819.0,0.00103267]
[1733440896886,0.10503154,96868.0,96819.0,0.00103267]
[1733440897094,0.10503154,96868.0,96820.0,0.10503154]
[1733440897366,0.10503154,96868.0,96821.0,0.00103267]
[1733440897582,0.10503154,96868.0,96843.0,0.001]
[1733440897799,0.10503154,96868.0,96823.0,0.023]
[1733440898450,0.10503154,96868.0,96820.0,0.001]
[1733440898684,0.10503154,96868.0,96820.0,0.10503154]
[1733440899093,0.10503154,96868.0,96823.0,0.001]
[1733440899363,0.10503154,96868.0,96824.0,0.00103268]
[1733440899551,0.0788,96876.0,96825.0,0.00103269]
[1733440899766,0.10503154,96875.0,96826.0,0.10503154]
[1733440899975,0.10503154,96875.0,96827.0,0.00103255]
[1733440900183,0.10503154,96875.0,96828.0,0.10606408]
[1733440900568,0.10503154,96875.0,96829.0,0.023]
[1733440900903,0.10503154,96875.0,96820.0,0.0128767]
[1733440900904,0.10503154,96875.0,96831.0,0.023]
[1733440901134,0.10503154,96875.0,96833.0,0.023]
[1733440901347,0.10503154,96875.0,96835.0,0.023]
[1733440901561,0.10503154,96875.0,96836.0,0.10606402]
[1733440901767,0.10503154,96875.0,96837.0,0.023]
[1733440901982,0.10503154,96875.0,96839.0,0.023]
[1733440902190,0.10503154,96875.0,96839.0,0.12803154]
[1733440902431,0.10503154,96875.0,96840.0,0.00103248]
[1733440903267,0.10503154,96875.0,96839.0,0.12803154]
[1733440903517,0.09132007,96889.0,96841.0,0.12803154]
[1733440903765,0.0008633,96890.0,96872.0,0.10503154]
[1733440903975,0.0008633,96890.0,96873.0,0.0240319]
[1733440904843,0.0008633,96890.0,96875.0,0.023]
[1733440905075,0.0008633,96890.0,96876.0,0.10606343]
[1733440905292,0.0008633,96890.0,96877.0,0.023]
[1733440905513,0.0008633,96890.0,96882.0,0.10503154]
[1733440905720,0.0008633,96890.0,96889.0,0.12803154]
[1733440905869,0.0788,96924.0,96890.0,0.023]
[1733440906074,0.0788,96924.0,96892.0,0.023]
[1733440906458,0.0788,96924.0,96894.0,0.023]
[1733440906659,0.0788,96924.0,96896.0,0.023]
[1733440906875,0.10503154,96923.0,96896.0,0.023]
[1733440908341,0.10503154,96923.0,96878.0,0.0010319]
[1733440908342,0.10503154,96923.0,96890.0,0.023]
[1733440908560,0.10503154,96923.0,96891.0,0.0010319]
[1733440908766,0.0008633,96930.0,96892.0,0.023]
[1733440908992,0.0008633,96930.0,96893.0,0.10606324]
[1733440909230,0.0008633,96930.0,96894.0,0.023]
[1733440909445,0.0008633,96930.0,96896.0,0.023]
[1733440909667,0.0008633,96930.0,96899.0,0.023]
[1733440909898,0.0008633,96930.0,96901.0,0.023]
[1733440910159,0.0008633,96930.0,96903.0,0.023]
[1733440910366,0.0008633,96930.0,96905.0,0.023]
[1733440910586,0.0008633,96930.0,96906.0,0.10606312]
[1733440911046,0.0008633,96930.0,96907.0,0.023]
[1733440911270,0.0008633,96930.0,96908.0,0.10606312]
[1733440911474,0.0008633,96930.0,96909.0,0.023]
[1733440911699,0.0008633,96930.0,96914.0,0.10503154]
[1733440911906,0.0008633,96930.0,96915.0,0.02403144]
[1733440912115,0.0008633,96930.0,96916.0,0.10503154]
[1733440912349,0.0008633,96930.0,96908.0,0.00311971]
[1733440912350,0.0008633,96930.0,96925.0,0.023]
[1733440912574,0.0008633,96930.0,96927.0,0.023]
[1733440912796,0.0008633,96930.0,96928.0,0.10606291]
[1733440913054,0.0008633,96930.0,96929.0,0.023]
[1733440913227,0.0008633,96930.0,96929.0,0.12906291]
[1733440914365,0.0008633,96930.0,96908.0,0.00311971]
[1733440914570,0.0008633,96930.0,96909.0,0.10606308]
[1733440914820,0.0008633,96930.0,96924.0,0.00315799]
[1733440915056,0.0008633,96930.0,96925.0,0.00103153]
[1733440915300,0.0008633,96930.0,96926.0,0.00103158]
[1733440915519,0.0008633,96930.0,96911.0,0.10503154]
[1733440915520,0.0008633,96930.0,96912.0,0.00103158]
[1733440916781,0.00047505,96971.0,96920.0,0.10503154]
[1733440917004,0.00047505,96971.0,96921.0,0.00103133]
[1733440917258,0.00047505,96971.0,96922.0,0.10606287]
[1733440917471,0.00047505,96971.0,96924.0,0.00313866]
[1733440917743,0.00047505,96971.0,96925.0,0.12906287]
[1733440917941,0.00047505,96971.0,96927.0,0.023]
[1733440918171,0.00047505,96971.0,96929.0,0.023]
[1733440918401,0.00047505,96971.0,96931.0,0.023]
[1733440918628,0.00047505,96971.0,96932.0,0.10606282]
[1733440918843,0.00047505,96971.0,96944.0,0.023]
[1733440919099,0.00047505,96971.0,96946.0,0.023]
[1733440919355,0.00047505,96971.0,96957.0,0.10503154]
[1733440919525,0.0008642,96980.0,96947.0,0.15103111]
[1733440919526,0.00012917,96980.0,96958.0,0.10606257]
[1733440919744,0.00012917,96980.0,96959.0,0.023]
[1733440919963,0.00012917,96980.0,96960.0,0.10503154]
[1733440920162,0.00012917,96980.0,96960.0,0.13574191]
[1733440920620,0.00012917,96980.0,96961.0,0.023]
[1733440920822,0.00012917,96980.0,96963.0,0.023]
[1733440921027,0.00012917,96980.0,96964.0,0.10606261]
[1733440921237,0.00012917,96980.0,96965.0,0.023]
[1733440921349,0.0008632,96970.0,96966.0,0.00103107]
[1733440921558,0.0008632,96970.0,96960.0,0.01250758]
[1733440921762,0.0008632,96970.0,96961.0,0.12803154]
[1733440922173,0.0008632,96970.0,96936.0,0.023]
[1733440922390,0.0008632,96970.0,96931.0,0.02]
[1733440922391,0.0008632,96970.0,96937.0,0.00606275]
[1733440922610,0.00125081,96980.0,96958.0,0.10503154]
[1733440922611,0.00012917,96980.0,96958.0,0.10503154]
[1733440922834,4.94150017,96983.0,96967.0,0.003021]
[1733440923053,4.94150017,96983.0,96982.0,0.10503154]
[1733440923054,4.87192171,96983.0,96982.0,0.10503154]
[1733440923279,4.87192171,96983.0,96982.0,0.13471089]
[1733440923280,4.6730738,96983.0,96982.0,0.13471089]
[1733440923482,4.7955738,96983.0,96982.0,0.02967935]
[1733440923693,4.7955738,96983.0,96967.0,0.003021]
[1733440924495,0.10632047,96982.0,96918.0,0.05109548]
[1733440924659,0.10632047,96982.0,96922.0,0.10503154]
[1733440925081,0.10503154,96971.0,96935.0,0.00302994]
[1733440925280,0.00128918,96970.0,96936.0,0.10503154]
[1733440925926,4.6730738,96983.0,96936.0,0.10503154]
[1733440925927,4.6730738,96983.0,96965.0,0.10503154]
[1733440926145,4.65734206,96983.0,96966.0,0.05130217]
[1733440926356,4.65734206,96983.0,96951.0,0.00301329]
[1733440926357,4.65734206,96983.0,96974.0,0.023]
[1733440926561,4.65734206,96983.0,96976.0,0.023]
[1733440926809,4.65734206,96983.0,96976.0,0.10503154]
[1733440927649,4.63220482,96983.0,96977.0,0.15444472]
[1733440928060,2.98920094,96983.0,96982.0,0.25503154]
[1733440928261,0.0144492,97042.0,96994.0,0.023]
[1733440928469,0.0144492,97042.0,97003.0,0.023]
[1733440928669,0.0144492,97042.0,97005.0,0.023]
[1733440928878,0.0144492,97042.0,97004.0,0.13510272]
[1733440928879,0.0144492,97042.0,97007.0,0.023]
[1733440929079,0.0144492,97042.0,97008.0,0.10503154]
[1733440929295,0.0144492,97042.0,97009.0,0.023]
[1733440929507,0.0144492,97042.0,97011.0,0.023]
[1733440929732,0.0144492,97042.0,97023.0,0.00315467]
[1733440929975,0.0144492,97042.0,97024.0,0.10503154]
[1733440931233,0.0144492,97042.0,97023.0,0.00315467]
[1733440931882,0.0144492,97042.0,96973.0,0.15]
[1733440932108,0.18351977,97029.0,96986.0,0.10503154]
[1733440932541,0.18351977,97029.0,97000.0,0.00302449]
[1733440932755,0.0772,97029.0,97001.0,0.10503154]
[1733440933279,0.18351982,97029.0,96947.0,0.05193599]
[1733440933479,0.15161984,97028.0,96969.0,0.10503154]
[1733440933688,0.15161984,97028.0,96989.0,0.00301052]
[1733440933905,0.15161984,97028.0,96990.0,0.10503154]
[1733440934342,0.15161984,97028.0,96989.0,0.00301052]
[1733440934559,0.10503154,97024.0,96961.0,0.05189928]
[1733440934784,0.10503154,97009.0,96960.0,0.0017248]
[1733440935013,0.0144492,97042.0,96960.0,0.0017248]
[1733440935014,0.0453,97002.0,96960.0,0.0017248]
[1733440935214,0.0772,97000.0,96962.0,0.00308976]
[1733440935422,0.0772,96998.0,96960.0,0.0017248]
[1733440935643,0.0453,96986.0,96960.0,0.0017248]
[1733440935851,0.0453,96981.0,96901.0,0.05184418]
[1733440936055,0.10503154,96988.0,96901.0,0.05184418]
[1733440936056,0.1225,96978.0,96927.0,0.00304968]
[1733440936273,0.00128944,96977.0,96927.0,0.00304968]
[1733440936477,0.0012893,96976.0,96927.0,0.00304968]
[1733440936684,0.1285,96974.0,96927.0,0.00304968]
[1733440936908,0.0012893,96973.0,96927.0,0.00304968]
[1733440937116,0.0012893,96973.0,96890.0,0.0017264]
[1733440937117,0.10503154,96962.0,96904.0,0.05122597]
[1733440937329,0.12978949,96961.0,96898.0,0.0517695]
[1733440937569,0.0789,96954.0,96913.0,0.10503154]
[1733440937790,0.0496,96952.0,96911.0,0.0031542]
[1733440938037,0.10503154,96951.0,96913.0,0.10503154]
[1733440938242,0.10503154,96951.0,96911.0,0.0031542]
[1733440938243,0.0496,96952.0,96924.0,0.10503154]
[1733440938919,0.0496,96952.0,96925.0,0.198774]
[1733440939133,0.01235089,96996.0,96929.0,0.023]
[1733440939134,0.0789,96971.0,96929.0,0.023]
[1733440939427,0.0789,96971.0,96942.0,0.00315266]
[1733440939558,0.10632057,96970.0,96942.0,0.00315266]
[1733440940630,0.10632057,96970.0,96913.0,0.023]
[1733440940820,0.10632057,96970.0,96915.0,0.023]
[1733440941039,0.10632057,96970.0,96917.0,0.023]
[1733440941247,0.10632057,96970.0,96939.0,0.00305367]
[1733440942409,0.0789,96971.0,96940.0,0.10503154]
[1733440942664,0.13631234,97028.0,96939.0,0.00305367]
[1733440942665,0.0774,96992.0,96953.0,0.023]
[1733440942856,0.0774,96992.0,96955.0,0.023]
[1733440943094,0.0774,96992.0,96957.0,0.023]
[1733440943315,0.0774,96992.0,96960.0,0.023]
[1733440943514,0.0774,97016.0,96986.0,0.023]
[1733440943723,0.0774,97016.0,96990.0,0.023]
[1733440944028,0.0774,97016.0,96995.0,0.023]
[1733440944262,0.0774,97036.0,97011.0,0.023]
[1733440944477,0.0774,97036.0,97012.0,0.10503154]
[1733440944952,0.0774,97036.0,97013.0,0.023]
[1733440945199,0.0774,97036.0,97014.0,0.10503154]
[1733440945424,0.0774,97036.0,97015.0,0.023]
[1733440945707,0.0774,97036.0,97016.0,0.10503154]
[1733440945885,0.0774,97036.0,97017.0,0.023]
[1733440946144,0.0774,97036.0,97019.0,0.023]
[1733440946352,5.0008237,97030.0,97021.0,0.023]
[1733440946561,5.0008237,97030.0,97023.0,0.023]
[1733440946772,5.0008237,97030.0,97024.0,0.10503154]
[1733440946984,5.0008237,97030.0,97025.0,0.023]
[1733440947205,5.0008237,97030.0,97026.0,0.10503154]
[1733440947415,5.0008237,97030.0,97027.0,0.023]
[1733440947628,5.0008237,97030.0,97028.0,0.10503154]
[1733440947842,5.0008237,97030.0,97029.0,0.023]
[1733440948099,4.94941078,97030.0,97029.0,0.16097384]
[1733440948356,4.12687752,97030.0,97029.0,0.31097384]
[1733440948566,4.12687752,97030.0,97029.0,0.19091651]
[1733440948780,2.71846027,97030.0,97029.0,0.34091651]
[1733440949045,1.5828049,97030.0,97029.0,0.34091651]
[1733440949289,0.00055325,97086.0,97048.0,0.15]
[1733440949503,0.0009955,97049.0,97033.0,0.05110395]
[1733440949719,0.0009955,97049.0,97030.0,0.533941]
[1733440949720,0.00055325,97086.0,97048.0,0.10503154]
[1733440950150,0.00055325,97086.0,97049.0,0.02773333]
[1733440950362,0.00055325,97086.0,97048.0,0.10813944]
[1733440950576,0.00055325,97086.0,97055.0,0.10503154]
[1733440950999,0.00055325,97086.0,97055.0,0.13276487]
[1733440951224,0.00055325,97086.0,97055.0,0.15576487]
[1733440952152,4.990721,97076.0,97056.0,0.05073333]
[1733440952369,4.990721,97076.0,97075.0,0.10493154]
[1733440952370,4.93935982,97076.0,97075.0,0.10493154]
[1733440952579,4.93935982,97076.0,97075.0,0.12793154]
[1733440952810,4.93935982,97076.0,97075.0,0.15598181]
[1733440953021,4.93935982,97076.0,97075.0,0.13298181]
[1733440953232,4.93935982,97076.0,97075.0,0.13118348]
[1733440953666,4.93935982,97076.0,97075.0,0.10493154]
[1733440953877,4.93935982,97076.0,97075.0,0.13118348]
[1733440954084,4.93935982,97076.0,97075.0,0.13428148]
[1733440954500,4.88799864,97076.0,97075.0,0.13428148]
[1733440954718,4.88799864,97076.0,97075.0,0.15728148]
[1733440954930,4.88799864,97076.0,97075.0,0.13428148]
[1733440955377,4.87906518,97076.0,97075.0,0.15728148]
[1733440955605,3.61634684,97076.0,97075.0,0.33594204]
[1733440955822,3.12624859,97076.0,97075.0,1.52903221]
[1733440956028,2.14756709,97076.0,97075.0,2.5449401]
[1733440956241,2.14756709,97076.0,97075.0,1.8467821]
[1733440956453,0.87234819,97076.0,97075.0,0.23462454]
[1733440956692,0.36797491,97076.0,97075.0,0.23462454]
[1733440956915,0.00055325,97086.0,97075.0,0.23462454]
[1733440957165,0.00055325,97086.0,97085.0,0.10503154]
[1733440958001,0.00055325,97086.0,97085.0,0.23603154]
[1733440958226,0.00055325,97086.0,97085.0,0.10503154]
[1733440959485,0.00055325,97086.0,97075.0,0.003098]